fUST/lending_fUST_20240729
["ID","MTS","AMOUNT","RATE_DAILY","PERIOD"]
[333514127,1722223855089,-150.112233,0.000157,2]
[333514128,1722223855098,-150.112233,0.000157,2]
[333514129,1722223855108,-150.112233,0.000157,2]
[333514130,1722223855117,-500.0,0.00015707,2]
[333514131,1722223855126,-186.46,0.00015707,2]
[333514132,1722223855136,-500.0,0.00015707,2]
[333514133,1722223855145,-500.0,0.00015707,2]
[333514134,1722223855159,-500.0,0.00015707,2]
[333514135,1722223855168,-300.80638286,0.00015707,2]
[333514136,1722223855178,-533.3787791,0.00015707,2]
[333514137,1722223855190,-2389.55,0.00015707,2]
[333514138,1722223855200,-2389.55,0.00015707,2]
[333514139,1722223855211,-9639.05525324,0.00015708,2]
[333514140,1722223855221,-2123.86369588,0.00015708,2]
[333514141,1722223855234,-1162.16976726,0.00015708,2]
[333514142,1722223855245,-4018.01957075,0.00015708,2]
[333514143,1722223855255,-2138.42102512,0.00015708,2]
[333514144,1722223855264,-1762.71873065,0.00015708,2]
[333514145,1722223855274,-1437.78611875,0.00015708,2]
[333514146,1722223855284,-2277.39949897,0.00015708,3]
[333514147,1722223855294,-3086.6528281,0.00015708,2]
[333514148,1722223855304,-1172.04350055,0.00015708,2]
[333514149,1722223855313,-4238.78518136,0.00015708,2]
[333514150,1722223855323,-4180.04028286,0.00015708,2]
[333514151,1722223855334,-1990.82429951,0.00015708,2]
[333514152,1722223855344,-20752.6436984,0.00015708,2]
[333514153,1722223855354,-6999.1698205,0.00015708,2]
[333514154,1722223855364,-1382.47255271,0.00015708,2]
[333514155,1722223855374,-1500.0,0.00015708,2]
[333514156,1722223855385,-492.27173157,0.00015708,2]
[333514157,1722223855395,-500.0,0.00015708,2]
[333514158,1722223855406,-500.0,0.00015708,2]
[333514159,1722223855415,-2389.55,0.00015708,2]
[333514160,1722223855425,-35001.9180202,0.00015709,2]
[333514161,1722223855435,-42327.47361396,0.00015709,2]
[333514162,1722223855444,-155.92113308,0.0001571,2]
[333514163,1722223855454,-500.0,0.00015735,2]
[333514164,1722223855464,-150.112233,0.000158,2]
[333514165,1722223855473,-150.112233,0.000158,2]
[333514166,1722223855483,-150.112233,0.000158,2]
[333514167,1722223855493,-150.112233,0.000158,2]
[333514168,1722223855503,-500.0,0.0001584,2]
[333514169,1722223855513,-2389.55,0.0001584,2]
[333514170,1722223855523,-500.0,0.00015943,2]
[333514171,1722223855532,-2389.55,0.00015943,2]
[333514172,1722223855541,-500.0,0.00015945,2]
[333514173,1722223855550,-200.0,0.00015949,2]
[333514174,1722223855560,-402.71070076,0.00015952,2]
[333514175,1722223855570,-2389.55,0.00015952,2]
[333514176,1722223855579,-2389.55,0.00015952,2]
[333514177,1722223855589,-3147.15601632,0.00015954,2]
[333514178,1722223855599,-500.0,0.00015954,2]
[333514179,1722223855609,-513.53823632,0.00015954,2]
[333514180,1722223855620,-540.6786355,0.00015954,2]
[333514181,1722223855630,-500.0,0.00015954,2]
[333514182,1722223855642,-500.0,0.00015954,2]
[333514183,1722223855652,-506.12646746,0.00015954,2]
[333514184,1722223855664,-500.0,0.00015954,2]
[333514185,1722223855674,-510.37342639,0.00015954,2]
[333514186,1722223855683,-508.72443576,0.00015954,2]
[333514187,1722223855693,-506.65255175,0.00015954,2]
[333514188,1722223855702,-507.16378783,0.00015954,2]
[333514189,1722223855712,-512.49296729,0.00015954,2]
[333514190,1722223855721,-507.71928641,0.00015954,2]
[333514191,1722223855730,-510.69537334,0.00015954,2]
[333514192,1722223855741,-504.62422835,0.00015954,2]
[333514193,1722223855751,-500.0,0.00015954,2]
[333514194,1722223855762,-506.31166975,0.00015954,2]
[333514195,1722223855771,-505.0360561,0.00015954,2]
[333514196,1722223855780,-516.04174876,0.00015954,2]
[333514197,1722223855790,-505.7907704,0.00015954,2]
[333514198,1722223855799,-488.86754016,0.00015954,2]
[333514199,1722223855808,-500.0,0.00015954,2]
[333514200,1722223855818,-552.91151288,0.00015954,2]
[333514201,1722223855827,-506.77865476,0.00015954,2]
[333514202,1722223855836,-504.79972012,0.00015954,2]
[333514203,1722223855845,-510.29208305,0.00015954,2]
[333514204,1722223855854,-505.46036972,0.00015954,2]
[333514205,1722223855864,-500.0,0.00015954,2]
[333514206,1722223855873,-500.0,0.00015954,2]
[333514207,1722223855882,-504.78855382,0.00015954,2]
[333514208,1722223855892,-500.0,0.00015954,2]
[333514209,1722223855901,-500.0,0.00015954,2]
[333514210,1722223855910,-504.56634667,0.00015954,2]
[333514211,1722223855920,-500.0,0.00015954,2]
[333514212,1722223855929,-500.0,0.00015954,2]
[333514213,1722223855938,-500.0,0.00015954,2]
[333514214,1722223855948,-246.18709579,0.00015954,2]
[333514215,1722223855957,-565.15979209,0.00015954,2]
[333514216,1722223855966,-500.0,0.00015954,2]
[333514217,1722223855976,-500.0,0.00015954,2]
[333514218,1722223855985,-500.0,0.00015954,2]
[333514219,1722223855995,-374.904574,0.00015954,2]
[333514220,1722223856005,-500.0,0.00015954,2]
[333514221,1722223856015,-506.89397487,0.00015954,2]
[333514222,1722223856024,-500.0,0.00015954,2]
[333514223,1722223856034,-500.0,0.00015954,2]
[333514224,1722223856044,-500.0,0.00015954,2]
[333514225,1722223856055,-500.0,0.00015954,2]
[333514226,1722223856064,-507.04294224,0.00015954,2]
[333514227,1722223856074,-505.52861089,0.00015954,2]
[333514228,1722223856083,-500.0,0.00015954,2]
[333514229,1722223856092,-504.23330602,0.00015954,2]
[333514230,1722223856101,-500.0,0.00015954,2]
[333514231,1722223856110,-279.0922056,0.00015954,2]
[333514232,1722223856120,-500.0,0.00015954,2]
[333514233,1722223856129,-500.0,0.00015954,2]
[333514234,1722223856139,-500.0,0.00015954,2]
[333514235,1722223856148,-500.0,0.00015954,2]
[333514236,1722223856159,-500.0,0.00015954,2]
[333514237,1722223856169,-500.0,0.00015954,2]
[333514238,1722223856178,-501.31362916,0.00015954,2]
[333514239,1722223856187,-500.0,0.00015954,2]
[333514240,1722223856198,-509.812758,0.00015954,2]
[333514241,1722223856207,-309.12301668,0.00015954,2]
[333514242,1722223856217,-504.99421119,0.00015954,2]
[333514243,1722223856226,-500.0,0.00015954,2]
[333514244,1722223856237,-504.5667145,0.00015954,2]
[333514245,1722223856247,-513.05620289,0.00015954,2]
[333514246,1722223856256,-527.82934983,0.00015954,2]
[333514247,1722223856265,-500.0,0.00015954,2]
[333514248,1722223856275,-500.0,0.00015954,2]
[333514249,1722223856286,-525.65946941,0.00015954,2]
[333514250,1722223856295,-511.74096309,0.00015954,2]
[333514251,1722223856304,-510.26798038,0.00015954,2]
[333514252,1722223856314,-536.40864431,0.00015954,2]
[333514253,1722223856323,-500.0,0.00015954,2]
[333514254,1722223856332,-510.11638181,0.00015954,2]
[333514255,1722223856341,-500.0,0.00015954,2]
[333514256,1722223856350,-506.12280462,0.00015954,2]
[333514257,1722223856359,-500.0,0.00015954,2]
[333514258,1722223856368,-500.0,0.00015954,2]
[333514259,1722223856378,-506.74334361,0.00015954,2]
[333514260,1722223856387,-500.0,0.00015954,2]
[333514261,1722223856396,-507.687037,0.00015954,2]
[333514262,1722223856405,-500.0,0.00015954,2]
[333514263,1722223856415,-500.0,0.00015954,2]
[333514264,1722223856424,-500.0,0.00015954,2]
[333514265,1722223856433,-500.0,0.00015954,2]
[333514266,1722223856443,-515.65480227,0.00015954,2]
[333514267,1722223856452,-500.0,0.00015954,2]
[333514268,1722223856461,-505.24981307,0.00015954,2]
[333514269,1722223856471,-503.71296841,0.00015954,2]
[333514270,1722223856479,-500.0,0.00015954,2]
[333514271,1722223856490,-500.0,0.00015954,2]
[333514272,1722223856500,-500.0,0.00015954,2]
[333514273,1722223856509,-500.0,0.00015954,2]
[333514274,1722223856518,-509.95800548,0.00015954,2]
[333514275,1722223856528,-500.0,0.00015954,2]
[333514276,1722223856537,-500.0,0.00015954,2]
[333514277,1722223856546,-500.0,0.00015954,2]
[333514278,1722223856557,-500.0,0.00015954,2]
[333514279,1722223856566,-500.0,0.00015954,2]
[333514280,1722223856575,-500.0,0.00015954,2]
[333514281,1722223856584,-503.41141499,0.00015954,2]
[333514282,1722223856594,-500.0,0.00015954,2]
[333514283,1722223856603,-500.0,0.00015954,2]
[333514284,1722223856612,-500.0,0.00015954,2]
[333514285,1722223856622,-500.0,0.00015954,2]
[333514286,1722223856631,-500.0,0.00015954,2]
[333514287,1722223856641,-527.34654171,0.00015954,2]
[333514288,1722223856650,-500.0,0.00015954,2]
[333514289,1722223856659,-500.0,0.00015954,2]
[333514290,1722223856668,-507.25022188,0.00015954,2]
[333514291,1722223856678,-500.0,0.00015954,2]
[333514292,1722223856687,-500.0,0.00015954,2]
[333514293,1722223856696,-511.21659393,0.00015954,2]
[333514294,1722223856705,-500.0,0.00015954,2]
[333514295,1722223856714,-507.97407449,0.00015954,2]
[333514296,1722223856723,-470.48144692,0.00015954,2]
[333514297,1722223856733,-500.0,0.00015954,2]
[333514298,1722223856743,-258.35828696,0.00015954,2]
[333514299,1722223856752,-529.20134371,0.00015954,2]
[333514300,1722223856831,-511.49934572,0.00015954,2]
[333514301,1722223856841,-500.0,0.00015954,2]
[333514302,1722223856850,-513.84705805,0.00015954,2]
[333514303,1722223856860,-501.59840708,0.00015954,2]
[333514304,1722223856870,-504.52988689,0.00015954,2]
[333514305,1722223856880,-500.0,0.00015954,2]
[333514306,1722223856891,-501.85061909,0.00015954,2]
[333514307,1722223856902,-509.39048443,0.00015954,2]
[333514308,1722223856913,-501.94959597,0.00015954,2]
[333514309,1722223856924,-304.70284804,0.00015954,2]
[333514310,1722223856934,-500.0,0.00015954,2]
[333514311,1722223856946,-500.0,0.00015954,2]
[333514312,1722223856957,-511.25197111,0.00015954,2]
[333514313,1722223856966,-512.30623081,0.00015954,2]
[333514314,1722223856975,-500.0,0.00015954,2]
[333514315,1722223856985,-500.0,0.00015954,2]
[333514316,1722223856994,-500.0,0.00015954,2]
[333514317,1722223857004,-677.39,0.00015954,2]
[333514318,1722223857013,-503.53171307,0.00015954,2]
[333514319,1722223857023,-500.0,0.00015954,2]
[333514320,1722223857032,-500.0,0.00015954,2]
[333514321,1722223857041,-500.0,0.00015954,2]
[333514322,1722223857051,-500.0,0.00015954,2]
[333514323,1722223857060,-500.0,0.00015954,2]
[333514324,1722223857069,-513.70188192,0.00015954,2]
[333514325,1722223857078,-500.0,0.00015954,2]
[333514326,1722223857087,-596.8,0.00015954,2]
[333514327,1722223857096,-500.0,0.00015954,2]
[333514328,1722223857107,-500.0,0.00015954,2]
[333514329,1722223857116,-500.0,0.00015954,2]
[333514330,1722223857125,-500.0,0.00015954,2]
[333514331,1722223857135,-505.34851794,0.00015954,2]
[333514332,1722223857144,-500.0,0.00015954,2]
[333514333,1722223857156,-713.0,0.00015954,2]
[333514334,1722223857167,-500.0,0.00015954,2]
[333514335,1722223857177,-500.0,0.00015954,2]
[333514336,1722223857187,-500.0,0.00015954,2]
[333514337,1722223857196,-503.28338345,0.00015954,2]
[333514338,1722223857207,-508.72909345,0.00015954,2]
[333514339,1722223857216,-523.69962597,0.00015954,2]
[333514340,1722223857225,-521.03,0.00015954,2]
[333514341,1722223857238,-502.88387819,0.00015954,2]
[333514342,1722223857250,-507.52597783,0.00015954,2]
[333514343,1722223857260,-500.0,0.00015954,2]
[333514344,1722223857271,-500.0,0.00015954,2]
[333514345,1722223857280,-500.0,0.00015954,2]
[333514346,1722223857290,-505.69171487,0.00015954,2]
[333514347,1722223857300,-500.0,0.00015954,2]
[333514348,1722223857310,-500.0,0.00015954,2]
[333514349,1722223857320,-500.0,0.00015954,2]
[333514350,1722223857329,-504.6174834,0.00015954,2]
[333514351,1722223857341,-515.70364377,0.00015954,2]
[333514352,1722223857351,-500.0,0.00015954,2]
[333514353,1722223857361,-503.88998869,0.00015954,2]
[333514354,1722223857371,-500.0,0.00015954,2]
[333514355,1722223857384,-517.18361765,0.00015954,2]
[333514356,1722223857395,-509.25606557,0.00015954,2]
[333514357,1722223857404,-511.12506419,0.00015954,2]
[333514358,1722223857414,-500.0,0.00015954,2]
[333514359,1722223857428,-514.62510934,0.00015954,2]
[333514360,1722223857439,-500.0,0.00015954,2]
[333514361,1722223857448,-509.35032386,0.00015954,2]
[333514362,1722223857458,-500.0,0.00015954,2]
[333514363,1722223857468,-500.0,0.00015954,2]
[333514364,1722223857478,-504.1219786,0.00015954,2]
[333514365,1722223857487,-513.0256906,0.00015954,2]
[333514366,1722223857499,-500.0,0.00015954,2]
[333514367,1722223857509,-508.82446903,0.00015954,2]
[333514368,1722223857521,-191.69683038,0.00015954,2]
[333514369,1722223857530,-500.0,0.00015954,2]
[333514370,1722223857540,-500.0,0.00015954,2]
[333514371,1722223857549,-505.86417063,0.00015954,2]
[333514372,1722223857559,-507.56407425,0.00015954,2]
[333514373,1722223857568,-641.62,0.00015954,2]
[333514374,1722223857577,-506.44407817,0.00015954,2]
[333514375,1722223857587,-8758.31,0.00015954,2]
[333514376,1722223857596,-2022.79,0.00015954,2]
[333514377,1722223857605,-506.30572781,0.00015954,2]
[333514378,1722223857614,-504.27103133,0.00015954,2]
[333514379,1722223857624,-506.37298474,0.00015954,2]
[333514380,1722223857633,-2552.05,0.00015954,2]
[333514381,1722223857643,-500.0,0.00015954,2]
[333514382,1722223857652,-500.0,0.00015954,2]
[333514383,1722223857661,-503.49756742,0.00015954,2]
[333514384,1722223857671,-500.0,0.00015954,2]
[333514385,1722223857680,-500.0,0.00015954,2]
[333514386,1722223857689,-503.69781008,0.00015954,2]
[333514387,1722223857698,-513.64488225,0.00015954,2]
[333514388,1722223857708,-507.04604425,0.00015954,2]
[333514389,1722223857717,-526.54262942,0.00015954,2]
[333514390,1722223857727,-500.0,0.00015954,2]
[333514391,1722223857736,-500.0,0.00015954,2]
[333514392,1722223857749,-500.0,0.00015954,2]
[333514393,1722223857758,-500.0,0.00015954,2]
[333514394,1722223857767,-504.79340125,0.00015954,2]
[333514395,1722223857777,-443.64344552,0.00015954,2]
[333514396,1722223857789,-503.46678223,0.00015954,2]
[333514397,1722223857798,-500.0,0.00015954,2]
[333514398,1722223857808,-500.0,0.00015954,2]
[333514399,1722223857817,-503.53054291,0.00015954,2]
[333514400,1722223857827,-996.33,0.00015954,2]
[333514401,1722223857836,-500.0,0.00015954,2]
[333514402,1722223857845,-500.0,0.00015954,2]
[333514403,1722223857855,-500.0,0.00015954,2]
[333514404,1722223857864,-500.0,0.00015954,2]
[333514405,1722223857873,-500.0,0.00015954,2]
[333514406,1722223857883,-509.41114654,0.00015954,2]
[333514407,1722223857892,-506.12725502,0.00015954,2]
[333514408,1722223857902,-539.42,0.00015954,2]
[333514409,1722223857912,-500.0,0.00015954,2]
[333514410,1722223857921,-500.0,0.00015954,2]
[333514411,1722223857931,-500.0,0.00015954,2]
[333514412,1722223857940,-500.0,0.00015954,2]
[333514413,1722223857949,-524.50440208,0.00015954,2]
[333514414,1722223857958,-573.35,0.00015954,2]
[333514415,1722223857968,-500.0,0.00015954,2]
[333514416,1722223857977,-932.0,0.00015954,2]
[333514417,1722223857986,-507.2845331,0.00015954,2]
[333514418,1722223857997,-500.0,0.00015954,2]
[333514419,1722223858007,-500.0,0.00015954,2]
[333514420,1722223858016,-505.90471443,0.00015954,2]
[333514421,1722223858025,-500.0,0.00015954,2]
[333514422,1722223858035,-500.0,0.00015954,2]
[333514423,1722223858045,-500.0,0.00015954,2]
[333514424,1722223858054,-500.0,0.00015954,2]
[333514425,1722223858064,-500.0,0.00015954,2]
[333514426,1722223858073,-500.0,0.00015954,2]
[333514427,1722223858082,-500.0,0.00015954,2]
[333514428,1722223858092,-616.58976198,0.00015954,2]
[333514429,1722223858102,-510.3415657,0.00015954,2]
[333514430,1722223858112,-500.0,0.00015954,2]
[333514431,1722223858121,-1432.9,0.00015954,2]
[333514432,1722223858131,-505.90241492,0.00015954,2]
[333514433,1722223858140,-500.0,0.00015954,2]
[333514434,1722223858150,-500.0,0.00015954,2]
[333514435,1722223858164,-500.0,0.00015954,2]
[333514436,1722223858173,-505.17092297,0.00015954,2]
[333514437,1722223858183,-471.09466674,0.00015954,2]
[333514438,1722223858194,-500.0,0.00015954,2]
[333514439,1722223858205,-512.34712036,0.00015954,2]
[333514440,1722223858214,-497.67173015,0.00015954,2]
[333514441,1722223858223,-500.0,0.00015954,2]
[333514442,1722223858233,-636.90499462,0.00015954,2]
[333514443,1722223858242,-539.63057214,0.00015954,2]
[333514444,1722223858255,-500.0,0.00015954,2]
[333514445,1722223858265,-506.82355362,0.00015954,2]
[333514446,1722223858275,-500.0,0.00015954,2]
[333514447,1722223858284,-500.0,0.00015954,2]
[333514448,1722223858294,-188.8253788,0.00015954,2]
[333514449,1722223858303,-500.0,0.00015954,2]
[333514450,1722223858313,-500.0,0.00015954,2]
[333514451,1722223858322,-500.0,0.00015954,2]
[333514452,1722223858331,-500.0,0.00015954,2]
[333514453,1722223858341,-500.0,0.00015954,2]
[333514454,1722223858350,-507.753161,0.00015954,2]
[333514455,1722223858360,-539.51866986,0.00015954,2]
[333514456,1722223858369,-511.1762158,0.00015954,2]
[333514457,1722223858378,-504.5242799,0.00015954,2]
[333514458,1722223858388,-455.1604112,0.00015954,2]
[333514459,1722223858398,-500.0,0.00015954,2]
[333514460,1722223858407,-504.51554855,0.00015954,2]
[333514461,1722223858417,-500.0,0.00015954,2]
[333514462,1722223858428,-504.82893521,0.00015954,2]
[333514463,1722223858438,-506.77420529,0.00015954,2]
[333514464,1722223858448,-500.0,0.00015954,2]
[333514465,1722223858458,-500.0,0.00015954,2]
[333514466,1722223858468,-2389.55,0.00015954,2]
[333514467,1722223858478,-505.43229373,0.00015954,2]
[333514468,1722223858487,-500.0,0.00015954,2]
[333514469,1722223858498,-500.0,0.00015954,2]
[333514470,1722223858508,-500.0,0.00015954,2]
[333514471,1722223858519,-500.0,0.00015954,2]
[333514472,1722223858529,-500.0,0.00015954,2]
[333514473,1722223858538,-500.0,0.00015954,2]
[333514474,1722223858547,-500.0,0.00015954,2]
[333514475,1722223858556,-500.0,0.00015954,2]
[333514476,1722223858566,-503.14331217,0.00015954,2]
[333514477,1722223858576,-500.0,0.00015954,2]
[333514478,1722223858585,-500.0,0.00015954,2]
[333514479,1722223858595,-502.8926801,0.00015954,2]
[333514480,1722223858604,-512.74,0.00015954,2]
[333514481,1722223858613,-504.80903081,0.00015954,2]
[333514482,1722223858622,-500.0,0.00015954,2]
[333514483,1722223858634,-500.0,0.00015954,2]
[333514484,1722223858644,-500.0,0.00015954,2]
[333514485,1722223858654,-500.0,0.00015954,2]
[333514486,1722223858664,-500.0,0.00015954,2]
[333514487,1722223858674,-500.0,0.00015954,2]
[333514488,1722223858684,-500.0,0.00015954,2]
[333514489,1722223858694,-505.23313278,0.00015955,2]
[333514490,1722223858703,-500.0,0.00015955,2]
[333514491,1722223858713,-500.0,0.00015955,2]
[333514492,1722223858784,-507.56228297,0.00015955,2]
[333514493,1722223858801,-501.31940601,0.00015955,2]
[333514494,1722223858811,-516.61659237,0.00015955,2]
[333514495,1722223858821,-500.0,0.00015955,2]
[333514496,1722223858830,-500.0,0.00015955,2]
[333514497,1722223858840,-506.17853924,0.00015955,2]
[333514498,1722223858849,-500.0,0.00015955,2]
[333514499,1722223858859,-500.0,0.00015955,2]
[333514500,1722223858868,-500.0,0.00015955,2]
[333514501,1722223858877,-500.0,0.00015955,2]
[333514502,1722223858887,-504.97263436,0.00015955,2]
[333514503,1722223858897,-502.67745479,0.00015955,2]
[333514504,1722223858907,-504.99107573,0.00015955,2]
[333514505,1722223858917,-500.0,0.00015955,2]
[333514506,1722223858926,-623.99103604,0.00015955,2]
[333514507,1722223858935,-500.0,0.00015955,2]
[333514508,1722223858945,-512.93967589,0.00015955,2]
[333514509,1722223858955,-506.53712073,0.00015955,2]
[333514510,1722223858964,-485.49607953,0.00015955,2]
[333514511,1722223858974,-500.0,0.00015955,2]
[333514512,1722223858983,-510.00983242,0.00015955,2]
[333514513,1722223858993,-500.0,0.00015955,2]
[333514514,1722223859003,-500.0,0.00015955,2]
[333514515,1722223859012,-507.14621615,0.00015955,2]
[333514516,1722223859022,-502.96055588,0.00015955,2]
[333514517,1722223859031,-504.70697427,0.00015955,2]
[333514518,1722223859040,-500.0,0.00015955,2]
[333514519,1722223859050,-500.0,0.00015955,2]
[333514520,1722223859059,-500.0,0.00015955,2]
[333514521,1722223859069,-500.0,0.00015955,2]
[333514522,1722223859079,-561.86527857,0.00015955,2]
[333514523,1722223859088,-500.0,0.00015955,2]
[333514524,1722223859098,-571.68216831,0.00015955,2]
[333514525,1722223859108,-501.68468474,0.00015955,2]
[333514526,1722223859117,-504.24726139,0.00015955,2]
[333514527,1722223859127,-238.16391038,0.00015955,2]
[333514528,1722223859136,-500.0,0.00015955,2]
[333514529,1722223859145,-501.79528489,0.00015955,2]
[333514530,1722223859157,-519.87597528,0.00015955,2]
[333514531,1722223859167,-504.33804397,0.00015955,2]
[333514532,1722223859177,-500.0,0.00015955,2]
[333514533,1722223859186,-512.06385227,0.00015955,2]
[333514534,1722223859196,-501.7903319,0.00015955,2]
[333514535,1722223859206,-500.0,0.00015955,2]
[333514536,1722223859216,-508.46440476,0.00015955,2]
[333514537,1722223859225,-500.0,0.00015955,2]
[333514538,1722223859237,-500.0,0.00015955,2]
[333514539,1722223859247,-509.87929055,0.00015955,2]
[333514540,1722223859256,-500.0,0.00015955,2]
[333514541,1722223859266,-500.0,0.00015955,2]
[333514542,1722223859276,-511.41821267,0.00015955,2]
[333514543,1722223859285,-500.0,0.00015955,2]
[333514544,1722223859294,-512.19970253,0.00015955,2]
[333514545,1722223859303,-244.00257974,0.00015955,2]
[333514546,1722223859313,-501.92838351,0.00015955,2]
[333514547,1722223859322,-500.0,0.00015955,2]
[333514548,1722223859331,-500.0,0.00015955,2]
[333514549,1722223859340,-500.0,0.00015955,2]
[333514550,1722223859350,-509.02205877,0.00015955,2]
[333514551,1722223859359,-500.0,0.00015955,2]
[333514552,1722223859368,-500.0,0.00015955,2]
[333514553,1722223859377,-500.0,0.00015955,2]
[333514554,1722223859387,-500.0,0.00015955,2]
[333514555,1722223859396,-500.0,0.00015955,2]
[333514556,1722223859405,-500.0,0.00015955,2]
[333514557,1722223859414,-510.67414565,0.00015955,2]
[333514558,1722223859423,-500.0,0.00015955,2]
[333514559,1722223859432,-502.57936916,0.00015955,2]
[333514560,1722223859442,-500.0,0.00015955,2]
[333514561,1722223859451,-502.88335709,0.00015955,2]
[333514562,1722223859460,-505.54033825,0.00015955,2]
[333514563,1722223859470,-534.93,0.00015955,2]
[333514564,1722223859479,-500.0,0.00015955,2]
[333514565,1722223859489,-500.0,0.00015955,2]
[333514566,1722223859498,-500.0,0.00015955,2]
[333514567,1722223859508,-500.0,0.00015955,2]
[333514568,1722223859517,-500.0,0.00015955,2]
[333514569,1722223859526,-4472.81146669,0.00016,2]
[333514570,1722223859536,-2389.55,0.00016027,2]
[333514571,1722223859545,-2389.55,0.00016037,2]
[333514572,1722223859555,-569.83661422,0.00016038,2]
[333514573,1722223859567,-2389.55,0.00016218,2]
[333514574,1722223859576,-500.0,0.00016228,2]
[333514575,1722223859585,-500.0,0.00016228,2]
[333514576,1722223859594,-504.66710853,0.00016228,2]
[333514577,1722223859603,-500.0,0.00016228,2]
[333514578,1722223859612,-500.0,0.00016228,2]
[333514579,1722223859622,-500.0,0.00016228,2]
[333514580,1722223859632,-500.0,0.00016228,2]
[333514581,1722223859641,-500.0,0.00016228,2]
[333514582,1722223859650,-500.0,0.00016228,2]
[333514583,1722223859659,-500.0,0.00016228,2]
[333514584,1722223859668,-500.0,0.00016228,2]
[333514585,1722223859678,-500.0,0.00016228,2]
[333514586,1722223859687,-500.0,0.00016228,2]
[333514587,1722223859696,-500.0,0.00016228,2]
[333514588,1722223859706,-500.0,0.00016228,2]
[333514589,1722223859715,-500.0,0.00016228,2]
[333514590,1722223859724,-306.4692089,0.00016228,2]
[333514591,1722223859735,-508.68828693,0.00016228,2]
[333514592,1722223859746,-500.0,0.00016228,2]
[333514593,1722223859758,-500.0,0.00016228,2]
[333514594,1722223859767,-500.0,0.00016228,2]
[333514595,1722223859777,-500.0,0.00016228,2]
[333514596,1722223859786,-500.0,0.00016228,2]
[333514597,1722223859795,-500.0,0.00016228,2]
[333514598,1722223859805,-500.0,0.00016228,2]
[333514599,1722223859814,-227.97506725,0.00016228,2]
[333514600,1722223859824,-505.28647229,0.00016228,2]
[333514601,1722223859833,-500.0,0.00016228,2]
[333514602,1722223859842,-500.0,0.00016228,2]
[333514603,1722223859851,-500.0,0.00016228,2]
[333514604,1722223859860,-500.0,0.00016228,2]
[333514605,1722223859870,-500.0,0.00016228,2]
[333514606,1722223859879,-500.0,0.00016228,2]
[333514607,1722223859888,-500.0,0.00016228,2]
[333514608,1722223859898,-500.0,0.00016228,2]
[333514609,1722223859907,-500.0,0.00016228,2]
[333514610,1722223859916,-500.0,0.00016228,2]
[333514611,1722223859926,-359.70451647,0.00016228,2]
[333514612,1722223859935,-500.0,0.00016228,2]
[333514613,1722223859944,-500.0,0.00016228,2]
[333514614,1722223859953,-500.0,0.00016228,2]
[333514615,1722223859962,-528.78469222,0.00016228,2]
[333514616,1722223859971,-500.0,0.00016228,2]
[333514617,1722223859980,-500.0,0.00016228,2]
[333514618,1722223859989,-506.40586509,0.00016228,2]
[333514619,1722223859998,-500.0,0.00016228,2]
[333514620,1722223860007,-516.53044072,0.00016228,2]
[333514621,1722223860016,-511.48519043,0.00016228,2]
[333514622,1722223860026,-500.0,0.00016228,2]
[333514623,1722223860035,-500.0,0.00016228,2]
[333514624,1722223860046,-500.0,0.00016228,2]
[333514625,1722223860055,-500.0,0.00016228,2]
[333514626,1722223860065,-585.64766448,0.00016228,2]